[Event "*** Titled Tuesday Blitz"]
[Site "Chess.com"]
[Date "2020.11.10"]
[Round "10"]
[White "Witik"]
[Black "Guenplen"]
[Result "0-1"]
[WhiteElo "2660"]
[BlackElo "2876"]
[TimeControl "180+1"]
[EndTime "12:01:33 PST"]
[Termination "Guenplen won on time"]

1. e4 {[%clk 0:03:00.9]} 1... c5 {[%clk 0:02:58.8]} 2. Nf3 {[%clk 0:03:00.6]}
2... e6 {[%clk 0:02:59]} 3. d4 {[%clk 0:03:00.6]} 3... cxd4 {[%clk 0:02:59.9]}
4. Nxd4 {[%clk 0:03:01.5]} 4... Nf6 {[%clk 0:03:00.5]} 5. Nc3 {[%clk 0:03:00.6]}
5... Nc6 {[%clk 0:03:00.9]} 6. Ndb5 {[%clk 0:02:52.7]} 6... Bc5 {[%clk
0:03:00.2]} 7. Bf4 {[%clk 0:02:45.9]} 7... O-O {[%clk 0:03:00]} 8. Bd6 {[%clk
0:02:40.4]} 8... b6 {[%clk 0:02:59.5]} 9. Be2 {[%clk 0:01:42.3]} 9... a6 {[%clk
0:02:53.1]} 10. Bxc5 {[%clk 0:01:40.1]} 10... bxc5 {[%clk 0:02:52]} 11. Nd6
{[%clk 0:01:40.1]} 11... Rb8 {[%clk 0:02:44]} 12. Rb1 {[%clk 0:01:29.3]} 12...
Rb4 {[%clk 0:02:28.3]} 13. Bc4 {[%clk 0:00:49.5]} 13... Ne5 {[%clk 0:02:27.7]}
14. b3 {[%clk 0:00:43.9]} 14... Nxc4 {[%clk 0:02:16.2]} 15. bxc4 {[%clk
0:00:32.2]} 15... Ne8 {[%clk 0:02:01.5]} 16. Rxb4 {[%clk 0:00:18]} 16... cxb4
{[%clk 0:02:00.7]} 17. Na4 {[%clk 0:00:14.7]} 17... Nxd6 {[%clk 0:01:37.4]} 18.
Qxd6 {[%clk 0:00:14.5]} 18... Bb7 {[%clk 0:01:38]} 19. Nc5 {[%clk 0:00:13.1]}
19... Bc6 {[%clk 0:01:38.4]} 20. O-O {[%clk 0:00:13.1]} 20... Qa5 {[%clk
0:01:16.6]} 21. Nxd7 {[%clk 0:00:11.8]} 21... Bxd7 {[%clk 0:01:16.9]} 22. Qxd7
{[%clk 0:00:12.1]} 22... Qxa2 {[%clk 0:01:16.8]} 23. c5 {[%clk 0:00:12.3]} 23...
Qxc2 {[%clk 0:01:16]} 24. c6 {[%clk 0:00:12.8]} 24... b3 {[%clk 0:01:16.4]} 25.
Qb7 {[%clk 0:00:09.5]} 25... a5 {[%clk 0:01:10.2]} 26. c7 {[%clk 0:00:09.1]}
26... h6 {[%clk 0:01:04.1]} 27. h3 {[%clk 0:00:08]} 27... a4 {[%clk 0:01:01.6]}
28. Ra1 {[%clk 0:00:07.5]} 28... b2 {[%clk 0:00:57.2]} 29. Re1 {[%clk
0:00:04.7]} 29... a3 {[%clk 0:00:56.2]} 30. Qb4 {[%clk 0:00:02.6]} 30... a2
{[%clk 0:00:53.3]} 0-1

[Event "*** Titled Tuesday Blitz"]
[Site "Chess.com"]
[Date "2020.11.10"]
[Round "10"]
[White "MPGM"]
[Black "ural58"]
[Result "1-0"]
[WhiteElo "2476"]
[BlackElo "2378"]
[TimeControl "180+1"]
[EndTime "12:01:33 PST"]
[Termination "MPGM won by resignation"]

1. d4 {[%clk 0:03:00.9]} 1... d5 {[%clk 0:02:58.5]} 2. c4 {[%clk 0:03:00.7]}
2... e5 {[%clk 0:02:58.2]} 3. dxe5 {[%clk 0:03:00.3]} 3... d4 {[%clk 0:02:57.9]}
4. Nf3 {[%clk 0:03:00]} 4... Nc6 {[%clk 0:02:57.6]} 5. Nbd2 {[%clk 0:02:59.9]}
5... a5 {[%clk 0:02:56.3]} 6. Nb3 {[%clk 0:02:58.3]} 6... Bg4 {[%clk 0:02:54.5]}
7. a3 {[%clk 0:02:06.3]} 7... Bxf3 {[%clk 0:02:35.6]} 8. exf3 {[%clk 0:02:07.2]}
8... a4 {[%clk 0:02:31.7]} 9. Nd2 {[%clk 0:02:02.1]} 9... Qg5 {[%clk 0:02:30.2]}
10. Ne4 {[%clk 0:01:46.5]} 10... Qxe5 {[%clk 0:02:30.3]} 11. Be2 {[%clk
0:01:44.2]} 11... f5 {[%clk 0:02:09]} 12. Ng3 {[%clk 0:01:34.4]} 12... g6 {[%clk
0:01:57.7]} 13. O-O {[%clk 0:01:32.6]} 13... Nge7 {[%clk 0:01:57]} 14. Re1
{[%clk 0:01:32.8]} 14... Bg7 {[%clk 0:01:56.7]} 15. Bf1 {[%clk 0:01:29.3]} 15...
Qd6 {[%clk 0:01:53.6]} 16. Bg5 {[%clk 0:01:16.2]} 16... O-O {[%clk 0:01:53.1]}
17. Rc1 {[%clk 0:01:15.7]} 17... h6 {[%clk 0:01:44.7]} 18. c5 {[%clk 0:01:14.9]}
18... Qd8 {[%clk 0:01:38.5]} 19. Bf4 {[%clk 0:00:59.2]} 19... Kh7 {[%clk
0:01:30.8]} 20. h4 {[%clk 0:00:56]} 20... Bf6 {[%clk 0:01:26]} 21. h5 {[%clk
0:00:55.7]} 21... g5 {[%clk 0:01:26]} 22. Bd2 {[%clk 0:00:56.2]} 22... Kg7
{[%clk 0:01:22.2]} 23. Bd3 {[%clk 0:00:53.7]} 23... Qd7 {[%clk 0:01:22.3]} 24.
Qc2 {[%clk 0:00:53.1]} 24... f4 {[%clk 0:01:19.3]} 25. Nf5+ {[%clk 0:00:46.2]}
25... Nxf5 {[%clk 0:01:19.4]} 26. Bxf5 {[%clk 0:00:47.1]} 26... Qf7 {[%clk
0:01:14.7]} 27. Bg6 {[%clk 0:00:44.3]} 27... Qg8 {[%clk 0:01:11.9]} 28. Re2
{[%clk 0:00:37.4]} 28... Ne5 {[%clk 0:01:06.2]} 29. Rce1 {[%clk 0:00:34.2]}
29... d3 {[%clk 0:00:52.9]} 30. Bxd3 {[%clk 0:00:33.5]} 30... Nxd3 {[%clk
0:00:52.9]} 31. Qxd3 {[%clk 0:00:33.3]} 31... Qf7 {[%clk 0:00:49.7]} 32. Bc3
{[%clk 0:00:33.7]} 32... Rad8 {[%clk 0:00:48]} 33. Bxf6+ {[%clk 0:00:27.2]}
33... Qxf6 {[%clk 0:00:48.9]} 34. Re7+ {[%clk 0:00:26.8]} 34... Rf7 {[%clk
0:00:39.5]} 35. Qxd8 {[%clk 0:00:26.3]} 1-0

[Event "*** Titled Tuesday Blitz"]
[Site "Chess.com"]
[Date "2020.11.10"]
[Round "10"]
[White "szachuspl"]
[Black "orestn"]
[Result "0-1"]
[WhiteElo "2516"]
[BlackElo "2298"]
[TimeControl "180+1"]
[EndTime "12:01:36 PST"]
[Termination "orestn won by resignation"]

1. d4 {[%clk 0:03:00.9]} 1... d5 {[%clk 0:02:59.4]} 2. c4 {[%clk 0:03:00.9]}
2... e6 {[%clk 0:02:59.8]} 3. Nc3 {[%clk 0:03:00.4]} 3... Nf6 {[%clk 0:02:59.7]}
4. Nf3 {[%clk 0:03:00.8]} 4... Nbd7 {[%clk 0:02:54.1]} 5. Bg5 {[%clk 0:03:00.6]}
5... h6 {[%clk 0:02:53]} 6. Bh4 {[%clk 0:03:00.1]} 6... Be7 {[%clk 0:02:52.2]}
7. e3 {[%clk 0:03:00.4]} 7... O-O {[%clk 0:02:51.6]} 8. cxd5 {[%clk 0:02:57.7]}
8... Nxd5 {[%clk 0:02:50.8]} 9. Bxe7 {[%clk 0:02:56.3]} 9... Nxe7 {[%clk
0:02:49.3]} 10. Bd3 {[%clk 0:02:55.9]} 10... c5 {[%clk 0:02:48.7]} 11. O-O
{[%clk 0:02:53.5]} 11... b6 {[%clk 0:02:47.6]} 12. Qe2 {[%clk 0:02:50.4]} 12...
Bb7 {[%clk 0:02:43.1]} 13. Rfd1 {[%clk 0:02:50.6]} 13... cxd4 {[%clk 0:02:35]}
14. Nxd4 {[%clk 0:02:50.1]} 14... Qb8 {[%clk 0:02:33.6]} 15. Rac1 {[%clk
0:02:45.3]} 15... Rc8 {[%clk 0:02:28.4]} 16. Bb1 {[%clk 0:02:38.6]} 16... Nf6
{[%clk 0:02:15.3]} 17. f3 {[%clk 0:02:38.3]} 17... a6 {[%clk 0:02:13.6]} 18. Qf2
{[%clk 0:02:37.7]} 18... b5 {[%clk 0:02:12.9]} 19. Qh4 {[%clk 0:02:37.3]} 19...
Nc6 {[%clk 0:02:08.3]} 20. Nde2 {[%clk 0:02:23.9]} 20... Qa7 {[%clk 0:01:57.8]}
21. Qf2 {[%clk 0:02:22.1]} 21... Rd8 {[%clk 0:01:55.4]} 22. g4 {[%clk
0:02:09.7]} 22... Ne5 {[%clk 0:01:47.5]} 23. e4 {[%clk 0:02:06.5]} 23... Nxf3+
{[%clk 0:01:42.6]} 24. Kf1 {[%clk 0:02:00.2]} 24... Qxf2+ {[%clk 0:01:29]} 25.
Kxf2 {[%clk 0:02:00.3]} 25... Nxh2 {[%clk 0:01:28.9]} 26. g5 {[%clk 0:01:57.4]}
26... hxg5 {[%clk 0:01:26.3]} 27. Kg3 {[%clk 0:01:56.8]} 27... Nhg4 {[%clk
0:01:23.7]} 28. Rd4 {[%clk 0:01:43.2]} 28... Rxd4 {[%clk 0:01:19.5]} 29. Nxd4
{[%clk 0:01:44.1]} 29... Ne5 {[%clk 0:01:13.6]} 30. Nb3 {[%clk 0:01:42.6]} 30...
Rc8 {[%clk 0:01:11]} 31. Rd1 {[%clk 0:01:42]} 31... b4 {[%clk 0:01:07.9]} 32.
Na4 {[%clk 0:01:39.8]} 32... Bxe4 {[%clk 0:01:07.3]} 33. Nac5 {[%clk 0:01:38.1]}
33... Bxb1 {[%clk 0:01:05.2]} 34. Rxb1 {[%clk 0:01:39]} 34... a5 {[%clk
0:01:01.3]} 35. Rd1 {[%clk 0:01:36.3]} 35... Nd5 {[%clk 0:00:53.5]} 36. Rd4
{[%clk 0:01:35.2]} 36... Kh7 {[%clk 0:00:47.3]} 37. Ne4 {[%clk 0:01:34.9]} 37...
Kg6 {[%clk 0:00:44.2]} 38. Nxa5 {[%clk 0:01:34.2]} 38... Rc2 {[%clk 0:00:41.9]}
39. Rd2 {[%clk 0:01:21.3]} 39... Rxd2 {[%clk 0:00:37.3]} 40. Nxd2 {[%clk
0:01:22.2]} 40... f5 {[%clk 0:00:36.6]} 41. Nb7 {[%clk 0:01:19.5]} 41... f4+
{[%clk 0:00:35.1]} 42. Kf2 {[%clk 0:01:19.9]} 42... g4 {[%clk 0:00:34.7]} 43.
Nc5 {[%clk 0:01:19.6]} 43... Kf5 {[%clk 0:00:33.4]} 44. a4 {[%clk 0:01:19.2]}
44... bxa3 {[%clk 0:00:32.4]} 45. bxa3 {[%clk 0:01:20.1]} 45... g3+ {[%clk
0:00:31.3]} 46. Kg2 {[%clk 0:01:20.2]} 46... Ne3+ {[%clk 0:00:29.7]} 47. Kh3
{[%clk 0:01:19.3]} 47... g5 {[%clk 0:00:28.9]} 48. a4 {[%clk 0:01:11.1]} 48...
g4+ {[%clk 0:00:28.6]} 49. Kh4 {[%clk 0:01:12]} 49... g2 {[%clk 0:00:27.8]} 0-1

[Event "*** Titled Tuesday Blitz"]
[Site "Chess.com"]
[Date "2020.11.10"]
[Round "10"]
[White "FMalexhdez"]
[Black "Chamal_Gedgafov"]
[Result "1-0"]
[WhiteElo "2263"]
[BlackElo "2143"]
[TimeControl "180+1"]
[EndTime "12:01:37 PST"]
[Termination "FMalexhdez won on time"]

1. e4 {[%clk 0:03:00.9]} 1... e6 {[%clk 0:02:59.6]} 2. d4 {[%clk 0:03:00]} 2...
d5 {[%clk 0:02:59.4]} 3. Nc3 {[%clk 0:03:00.6]} 3... Bb4 {[%clk 0:02:58.1]} 4.
e5 {[%clk 0:03:00.2]} 4... c5 {[%clk 0:02:57.3]} 5. a3 {[%clk 0:02:59.9]} 5...
Bxc3+ {[%clk 0:02:57.4]} 6. bxc3 {[%clk 0:03:00.5]} 6... Ne7 {[%clk 0:02:56.8]}
7. Nf3 {[%clk 0:02:54.6]} 7... b6 {[%clk 0:02:54.3]} 8. Be2 {[%clk 0:02:52.1]}
8... Ba6 {[%clk 0:02:19.1]} 9. O-O {[%clk 0:02:48]} 9... Bxe2 {[%clk 0:01:10.2]}
10. Qxe2 {[%clk 0:02:42.6]} 10... Qd7 {[%clk 0:01:09.1]} 11. c4 {[%clk
0:02:36.7]} 11... cxd4 {[%clk 0:00:56.1]} 12. Nxd4 {[%clk 0:02:34.2]} 12... Nbc6
{[%clk 0:00:45.7]} 13. Nb5 {[%clk 0:02:18.3]} 13... dxc4 {[%clk 0:00:41.8]} 14.
Nd6+ {[%clk 0:02:16.1]} 14... Kf8 {[%clk 0:00:40.2]} 15. Bb2 {[%clk 0:02:07.6]}
15... Ng6 {[%clk 0:00:34.4]} 16. Rfd1 {[%clk 0:01:58.3]} 16... h5 {[%clk
0:00:24.7]} 17. a4 {[%clk 0:01:50]} 17... h4 {[%clk 0:00:23.1]} 18. h3 {[%clk
0:01:40.8]} 18... Qc7 {[%clk 0:00:19.1]} 19. Nxc4 {[%clk 0:01:37.1]} 19... Na5
{[%clk 0:00:12.5]} 20. Ba3+ {[%clk 0:01:36.5]} 20... Kg8 {[%clk 0:00:10.5]} 21.
Nxa5 {[%clk 0:01:21.8]} 21... bxa5 {[%clk 0:00:11]} 22. Bd6 {[%clk 0:01:22.3]}
22... Qc6 {[%clk 0:00:07]} 23. Rab1 {[%clk 0:01:11]} 23... Nf4 {[%clk
0:00:04.6]} 24. Qf1 {[%clk 0:00:55.2]} 24... Rh6 {[%clk 0:00:03.2]} 25. Rd4
{[%clk 0:00:49.2]} 25... Nd5 {[%clk 0:00:00.3]} 26. c4 {[%clk 0:00:40.4]} 1-0

[Event "*** Titled Tuesday Blitz"]
[Site "Chess.com"]
[Date "2020.11.10"]
[Round "10"]
[White "horripile"]
[Black "Happy1712Drummer"]
[Result "1-0"]
[WhiteElo "2679"]
[BlackElo "2243"]
[TimeControl "180+1"]
[EndTime "12:01:38 PST"]
[Termination "horripile won on time"]

1. e4 {[%clk 0:03:00.9]} 1... c6 {[%clk 0:02:59.6]} 2. d4 {[%clk 0:03:00]} 2...
d5 {[%clk 0:03:00.5]} 3. Nd2 {[%clk 0:02:58.9]} 3... dxe4 {[%clk 0:02:59.9]} 4.
Nxe4 {[%clk 0:02:59.8]} 4... Nf6 {[%clk 0:03:00.2]} 5. Nxf6+ {[%clk 0:02:59.7]}
5... exf6 {[%clk 0:03:01]} 6. c3 {[%clk 0:03:00]} 6... Bd6 {[%clk 0:03:00.5]} 7.
Bd3 {[%clk 0:02:59.9]} 7... Qc7 {[%clk 0:02:59.9]} 8. Ne2 {[%clk 0:02:58.7]}
8... h5 {[%clk 0:02:58.9]} 9. h3 {[%clk 0:02:57.2]} 9... Be6 {[%clk 0:02:56.9]}
10. Be3 {[%clk 0:02:56.4]} 10... Nd7 {[%clk 0:02:47.5]} 11. Qc2 {[%clk
0:02:55.8]} 11... b5 {[%clk 0:02:42]} 12. a4 {[%clk 0:02:49.1]} 12... b4 {[%clk
0:02:24.1]} 13. c4 {[%clk 0:02:48.7]} 13... b3 {[%clk 0:02:16.5]} 14. Qxb3
{[%clk 0:02:48.3]} 14... Rb8 {[%clk 0:02:16.2]} 15. Qc2 {[%clk 0:02:48.3]} 15...
Bb4+ {[%clk 0:02:15.5]} 16. Kf1 {[%clk 0:02:34.2]} 16... O-O {[%clk 0:02:12.9]}
17. b3 {[%clk 0:02:34.1]} 17... Rfe8 {[%clk 0:02:09.1]} 18. g3 {[%clk
0:02:29.3]} 18... Nf8 {[%clk 0:02:03.1]} 19. Nf4 {[%clk 0:02:27.5]} 19... c5
{[%clk 0:01:47]} 20. d5 {[%clk 0:02:26.2]} 20... Bd7 {[%clk 0:01:39.6]} 21. Rd1
{[%clk 0:02:25.4]} 21... Rxe3 {[%clk 0:01:31]} 22. fxe3 {[%clk 0:02:24.3]} 22...
Re8 {[%clk 0:01:31.9]} 23. Kf2 {[%clk 0:02:23.5]} 23... Qe5 {[%clk 0:01:29.4]}
24. Qe2 {[%clk 0:02:17.5]} 24... h4 {[%clk 0:01:21]} 25. gxh4 {[%clk 0:02:17]}
25... Bc3 {[%clk 0:01:14]} 26. Kg2 {[%clk 0:02:12.5]} 26... Bf5 {[%clk
0:01:09.8]} 27. Bxf5 {[%clk 0:02:10.8]} 27... Qxf5 {[%clk 0:01:09.2]} 28. Qd3
{[%clk 0:02:10.9]} 28... Qe5 {[%clk 0:01:02.5]} 29. d6 {[%clk 0:02:10.4]} 29...
Nd7 {[%clk 0:01:01.5]} 30. Nd5 {[%clk 0:02:09.1]} 30... Ba5 {[%clk 0:00:53.5]}
31. Rhf1 {[%clk 0:02:09.3]} 31... g6 {[%clk 0:00:45.2]} 32. Rf3 {[%clk
0:01:57.7]} 32... f5 {[%clk 0:00:44]} 33. h5 {[%clk 0:01:55.8]} 33... Qxd6
{[%clk 0:00:29.6]} 34. hxg6 {[%clk 0:01:52.9]} 34... fxg6 {[%clk 0:00:29.3]} 35.
Nf4 {[%clk 0:01:51.7]} 35... Qxd3 {[%clk 0:00:25.5]} 36. Nxd3 {[%clk 0:01:52.6]}
36... Bc7 {[%clk 0:00:19]} 37. h4 {[%clk 0:01:51.1]} 37... Kg7 {[%clk
0:00:18.3]} 38. h5 {[%clk 0:01:51.3]} 38... Nf6 {[%clk 0:00:16.9]} 39. hxg6
{[%clk 0:01:50.9]} 39... Ng4 {[%clk 0:00:16]} 40. Re1 {[%clk 0:01:46.8]} 40...
Kxg6 {[%clk 0:00:13.7]} 41. Rh3 {[%clk 0:01:40.8]} 41... Kg5 {[%clk 0:00:12.1]}
42. Nxc5 {[%clk 0:01:32.8]} 42... Bb6 {[%clk 0:00:11.7]} 43. Nd3 {[%clk
0:01:32.3]} 43... Bxe3 {[%clk 0:00:10.7]} 44. Kf3 {[%clk 0:01:23.7]} 44... f4
{[%clk 0:00:03.6]} 45. Nxf4 {[%clk 0:01:23.3]} 45... Rf8 {[%clk 0:00:03]} 46.
Rh5+ {[%clk 0:01:23]} 1-0

[Event "*** Titled Tuesday Blitz"]
[Site "Chess.com"]
[Date "2020.11.10"]
[Round "10"]
[White "nelsoncopa"]
[Black "rududuyk"]
[Result "0-1"]
[WhiteElo "1907"]
[BlackElo "2151"]
[TimeControl "180+1"]
[EndTime "12:01:43 PST"]
[Termination "rududuyk won on time"]

1. d4 {[%clk 0:02:56.7]} 1... e6 {[%clk 0:03:00]} 2. c4 {[%clk 0:02:49.3]} 2...
f5 {[%clk 0:03:00.2]} 3. Nc3 {[%clk 0:02:47.5]} 3... Nf6 {[%clk 0:03:00.6]} 4.
Nf3 {[%clk 0:02:47.2]} 4... d6 {[%clk 0:02:56.3]} 5. e3 {[%clk 0:02:48.1]} 5...
Be7 {[%clk 0:02:52.8]} 6. Be2 {[%clk 0:02:49]} 6... O-O {[%clk 0:02:52.4]} 7.
O-O {[%clk 0:02:49.6]} 7... b6 {[%clk 0:02:52.4]} 8. b4 {[%clk 0:02:48]} 8...
Bb7 {[%clk 0:02:52.2]} 9. Bb2 {[%clk 0:02:46.9]} 9... Qe8 {[%clk 0:02:50.4]} 10.
a4 {[%clk 0:02:47.2]} 10... a5 {[%clk 0:02:46.5]} 11. b5 {[%clk 0:02:43.3]}
11... Ne4 {[%clk 0:02:44.3]} 12. Nd2 {[%clk 0:02:39.5]} 12... Nxc3 {[%clk
0:02:35.4]} 13. Bxc3 {[%clk 0:02:38]} 13... Bf6 {[%clk 0:02:30.9]} 14. Rc1
{[%clk 0:02:35.7]} 14... e5 {[%clk 0:02:29]} 15. dxe5 {[%clk 0:02:29]} 15...
dxe5 {[%clk 0:02:28.3]} 16. Nf3 {[%clk 0:02:26.7]} 16... Nd7 {[%clk 0:02:23.5]}
17. Qc2 {[%clk 0:02:21.6]} 17... Be4 {[%clk 0:02:18]} 18. Qb2 {[%clk 0:02:18]}
18... Kh8 {[%clk 0:02:01.5]} 19. Rfd1 {[%clk 0:01:40.7]} 19... Bxf3 {[%clk
0:02:00.9]} 20. Bxf3 {[%clk 0:01:40.2]} 20... e4 {[%clk 0:02:01.3]} 21. Bxf6
{[%clk 0:01:33.1]} 21... Rxf6 {[%clk 0:02:00.1]} 22. Be2 {[%clk 0:01:31.8]}
22... Nc5 {[%clk 0:01:59.9]} 23. Rd5 {[%clk 0:01:29]} 23... Nxa4 {[%clk
0:01:57.1]} 24. Qd4 {[%clk 0:01:27.2]} 24... Nc5 {[%clk 0:01:55.1]} 25. Rd1
{[%clk 0:01:24.1]} 25... Ne6 {[%clk 0:01:39.3]} 26. Qe5 {[%clk 0:01:19.7]} 26...
Rf8 {[%clk 0:01:35.6]} 27. Rd7 {[%clk 0:01:15.7]} 27... a4 {[%clk 0:01:30.3]}
28. c5 {[%clk 0:01:06.7]} 28... Rg8 {[%clk 0:01:20.3]} 29. Bc4 {[%clk
0:01:04.3]} 29... Nxc5 {[%clk 0:01:15.6]} 30. Qxe8 {[%clk 0:00:53.2]} 30...
Rgxe8 {[%clk 0:01:13.4]} 31. Rxc7 {[%clk 0:00:50.1]} 31... a3 {[%clk 0:01:11.4]}
32. Bd5 {[%clk 0:00:43.7]} 32... Red8 {[%clk 0:01:06.3]} 33. Rd2 {[%clk
0:00:24.2]} 33... Rxd5 {[%clk 0:01:00.3]} 34. Rxd5 {[%clk 0:00:17.7]} 34... a2
{[%clk 0:01:00.3]} 35. h3 {[%clk 0:00:13.4]} 35... a1=Q+ {[%clk 0:00:59.8]} 36.
Kh2 {[%clk 0:00:13.1]} 36... h6 {[%clk 0:00:54.9]} 0-1

[Event "*** Titled Tuesday Blitz"]
[Site "Chess.com"]
[Date "2020.11.10"]
[Round "10"]
[White "gilbert_gm"]
[Black "124chess"]
[Result "0-1"]
[WhiteElo "2554"]
[BlackElo "2727"]
[TimeControl "180+1"]
[EndTime "12:01:51 PST"]
[Termination "124chess won on time"]

1. e4 {[%clk 0:03:00.9]} 1... e6 {[%clk 0:02:57.8]} 2. d4 {[%clk 0:03:00]} 2...
d5 {[%clk 0:02:58.7]} 3. Nc3 {[%clk 0:02:59.1]} 3... Bb4 {[%clk 0:02:57.7]} 4.
e5 {[%clk 0:02:57.8]} 4... c5 {[%clk 0:02:57.4]} 5. Bd2 {[%clk 0:02:57.6]} 5...
Ne7 {[%clk 0:02:56.2]} 6. Nb5 {[%clk 0:02:57.3]} 6... Bxd2+ {[%clk 0:02:56.1]}
7. Qxd2 {[%clk 0:02:58.2]} 7... O-O {[%clk 0:02:56.7]} 8. dxc5 {[%clk
0:02:56.1]} 8... Nd7 {[%clk 0:02:56.9]} 9. f4 {[%clk 0:02:47.6]} 9... Nxc5
{[%clk 0:02:55.9]} 10. Bd3 {[%clk 0:02:44.6]} 10... Qb6 {[%clk 0:02:55.1]} 11.
Nf3 {[%clk 0:02:34.6]} 11... Bd7 {[%clk 0:02:47.2]} 12. Nd6 {[%clk 0:02:05.9]}
12... Nf5 {[%clk 0:02:23.4]} 13. Bxf5 {[%clk 0:01:59.1]} 13... exf5 {[%clk
0:02:24.3]} 14. Qd4 {[%clk 0:01:39.3]} 14... Ne4 {[%clk 0:02:23.8]} 15. Qxb6
{[%clk 0:01:32.9]} 15... axb6 {[%clk 0:02:24.7]} 16. Nd4 {[%clk 0:01:31.2]}
16... Nxd6 {[%clk 0:02:18.2]} 17. exd6 {[%clk 0:01:30.3]} 17... Rfe8+ {[%clk
0:02:18.9]} 18. Kd2 {[%clk 0:01:09.8]} 18... Re4 {[%clk 0:02:18.5]} 19. c3
{[%clk 0:01:09.9]} 19... Rxf4 {[%clk 0:02:17.5]} 20. Rhf1 {[%clk 0:01:06.9]}
20... Rxf1 {[%clk 0:02:13.6]} 21. Rxf1 {[%clk 0:01:07.8]} 21... Rd8 {[%clk
0:01:52]} 22. Re1 {[%clk 0:01:02]} 22... Kf8 {[%clk 0:01:47.8]} 23. Re7 {[%clk
0:00:58.4]} 23... Bc6 {[%clk 0:01:45.7]} 24. Nxf5 {[%clk 0:00:49.5]} 24... d4
{[%clk 0:01:38.5]} 25. cxd4 {[%clk 0:00:34.8]} 25... Bxg2 {[%clk 0:01:38.5]} 26.
Rc7 {[%clk 0:00:22.5]} 26... Be4 {[%clk 0:01:28.9]} 27. Ng3 {[%clk 0:00:12.1]}
27... Bd5 {[%clk 0:01:28.6]} 28. Nf5 {[%clk 0:00:10.2]} 28... g6 {[%clk
0:01:27.4]} 29. Ne3 {[%clk 0:00:03.8]} 29... Bc6 {[%clk 0:01:20.5]} 30. Kc3
{[%clk 0:00:01.1]} 30... Rxd6 {[%clk 0:01:20]} 31. Nc4 {[%clk 0:00:01.5]} 31...
Rd8 {[%clk 0:01:06.3]} 32. Nxb6 {[%clk 0:00:01.4]} 32... h5 {[%clk 0:01:04.8]}
33. a4 {[%clk 0:00:01.2]} 33... g5 {[%clk 0:01:04.6]} 34. b4 {[%clk 0:00:01.2]}
34... g4 {[%clk 0:01:04.4]} 35. b5 {[%clk 0:00:02.1]} 35... Bf3 {[%clk
0:01:04.1]} 36. Nc4 {[%clk 0:00:02.2]} 36... Bd5 {[%clk 0:00:52.5]} 37. Ne5
{[%clk 0:00:02.1]} 37... b6 {[%clk 0:00:52.3]} 0-1

[Event "*** Titled Tuesday Blitz"]
[Site "Chess.com"]
[Date "2020.11.10"]
[Round "10"]
[White "klimkoj"]
[Black "geordie_derraugh"]
[Result "1-0"]
[WhiteElo "2626"]
[BlackElo "2468"]
[TimeControl "180+1"]
[EndTime "12:01:54 PST"]
[Termination "klimkoj won by resignation"]

1. e4 {[%clk 0:03:00.9]} 1... c5 {[%clk 0:02:59.7]} 2. Nf3 {[%clk 0:03:00.6]}
2... e6 {[%clk 0:03:00.1]} 3. d4 {[%clk 0:03:00.6]} 3... cxd4 {[%clk 0:03:00.4]}
4. Nxd4 {[%clk 0:03:01.5]} 4... Nc6 {[%clk 0:03:00.8]} 5. Nc3 {[%clk 0:03:01.2]}
5... Qc7 {[%clk 0:03:01]} 6. Be2 {[%clk 0:03:01.6]} 6... a6 {[%clk 0:02:59.7]}
7. O-O {[%clk 0:02:59.8]} 7... Nf6 {[%clk 0:02:56.3]} 8. Be3 {[%clk 0:02:59]}
8... d6 {[%clk 0:02:50.9]} 9. f4 {[%clk 0:02:59]} 9... Bd7 {[%clk 0:02:50.3]}
10. Qe1 {[%clk 0:02:58.8]} 10... b5 {[%clk 0:02:40.6]} 11. Bd3 {[%clk
0:02:55.8]} 11... Be7 {[%clk 0:02:38.6]} 12. Qg3 {[%clk 0:02:54.9]} 12... h5
{[%clk 0:02:38]} 13. Nxc6 {[%clk 0:02:46.5]} 13... Bxc6 {[%clk 0:02:33.1]} 14.
Bd4 {[%clk 0:02:44.1]} 14... h4 {[%clk 0:02:23.8]} 15. Qf3 {[%clk 0:02:43.9]}
15... Qb7 {[%clk 0:02:01]} 16. a3 {[%clk 0:02:34.3]} 16... d5 {[%clk 0:01:41.1]}
17. Bxf6 {[%clk 0:02:24.1]} 17... Bxf6 {[%clk 0:01:42]} 18. exd5 {[%clk
0:02:22.3]} 18... Bxc3 {[%clk 0:01:21.3]} 19. dxc6 {[%clk 0:02:21.5]} 19... Qa7+
{[%clk 0:01:21.7]} 20. Kh1 {[%clk 0:02:21.9]} 20... Bxb2 {[%clk 0:01:16.3]} 21.
Rae1 {[%clk 0:02:20.6]} 21... Kf8 {[%clk 0:00:54.9]} 22. f5 {[%clk 0:02:17.6]}
22... e5 {[%clk 0:00:54.7]} 23. Qd5 {[%clk 0:02:00.7]} 23... Qc7 {[%clk
0:00:45]} 24. f6 {[%clk 0:01:22.2]} 24... g6 {[%clk 0:00:44.5]} 25. Qc5+ {[%clk
0:01:22.3]} 25... Kg8 {[%clk 0:00:44]} 26. c3 {[%clk 0:01:20.6]} 26... Rd8
{[%clk 0:00:31.6]} 27. Be4 {[%clk 0:00:52.6]} 27... h3 {[%clk 0:00:30.1]} 28. g3
{[%clk 0:00:41.3]} 28... Rd2 {[%clk 0:00:17.5]} 29. Qe7 {[%clk 0:00:37.5]} 29...
Qxe7 {[%clk 0:00:14.5]} 30. fxe7 {[%clk 0:00:37.6]} 30... Kg7 {[%clk 0:00:14.6]}
31. Rd1 {[%clk 0:00:35.2]} 31... Rxd1 {[%clk 0:00:08.4]} 32. Rxd1 {[%clk
0:00:36.1]} 32... Bxa3 {[%clk 0:00:09]} 33. Rd8 {[%clk 0:00:33]} 33... Bxe7
{[%clk 0:00:09]} 34. Rxh8 {[%clk 0:00:32.9]} 34... Kxh8 {[%clk 0:00:09.9]} 35.
c7 {[%clk 0:00:33.8]} 1-0